bitfinex/quotes_ETHUSD_20240828
["timestamp","ask_amount","ask_price","bid_price","bid_amount"]
[1724876980361,3.94589,2534.3,2533.8,0.55]
[1724876980568,2.2603,2534.1,2532.4,2.2815]
[1724876980754,3.94758,2533.2,2532.5,3.94861]
[1724876980954,3.94785,2533.1,2532.5,3.94861]
[1724876981553,3.94758,2533.2,2532.4,2.2815]
[1724876981554,3.94764,2533.2,2532.4,2.2815]
[1724876981754,6.94731,2533.4,2532.7,3.94825]
[1724876982302,3.94753,2533.3,2532.7,3.94825]
[1724876982456,6.94731,2533.4,2532.7,3.94825]
[1724876982651,3.94704,2533.6,2532.9,3.94801]
[1724876982652,3.94714,2533.5,2532.9,3.94801]
[1724876982857,3.9473,2533.4,2532.9,4.74553329]
[1724876983284,3.94704,2533.6,2532.9,3.94801]
[1724876983465,3.94704,2533.6,2533.0,0.55]
[1724876983670,3.9473,2533.4,2533.0,0.55]
[1724876983887,3.94768,2533.2,2532.4,2.50965]
[1724876984566,3.94766,2533.2,2532.4,2.2815]
[1724876984778,3.94766,2533.2,2532.5,3.94864]
[1724876985091,3.94766,2533.2,2532.7,3.94835]
[1724876985608,3.94831,2532.8,2532.2,3.94904]
[1724876985826,3.394766,2533.1,2531.9,2.4481]
[1724876985966,3.394766,2533.1,2530.8,4.63022301]
[1724876985967,3.94883,2532.4,2531.3,2.3639]
[1724876986278,3.94883,2532.4,2531.7,3.9498]
[1724876986466,3.0,2532.6,2531.3,2.3639]
[1724876986467,3.0,2532.6,2531.5,3.95016]
[1724876986666,3.94943,2532.1,2531.5,3.95016]
[1724876986867,3.94927,2532.2,2531.6,3.95006]
[1724876987068,3.94889,2532.4,2531.7,3.9499]
[1724876987266,3.94889,2532.4,2531.5,3.95016]
[1724876987267,3.94886,2532.4,2531.5,3.9501]
[1724876988011,3.94924,2532.2,2531.5,3.9501]
[1724876988310,4.344074,2532.2,2531.3,10.26482]
[1724876988604,4.344074,2532.2,2531.6,3.94996]
[1724876988605,3.94915,2532.2,2531.6,3.94996]
[1724876988808,3.0,2532.6,2531.8,3.94966]
[1724876988969,3.94839,2532.7,2531.7,0.07899223]
[1724876989171,3.0,2532.6,2531.5,3.95017]
[1724876989366,3.0,2532.6,2532.1,3.94927]
[1724876989604,6.94851,2532.6,2532.0,3.94943]
[1724876989814,3.94869,2532.5,2532.1,0.55]
[1724876990111,3.0,2532.6,2532.0,0.55]
[1724876990312,3.94861,2532.6,2532.0,0.55]
[1724876990475,3.94845,2532.7,2532.0,0.55]
[1724876990808,3.94845,2532.7,2532.1,3.94916]
[1724876990970,3.0,2532.8,2532.2,0.55]
[1724876991170,3.94812,2532.9,2532.3,3.94888]
[1724876991370,3.94887,2532.4,2532.2,0.55]
[1724876991567,3.9484,2532.7,2532.2,0.55]
[1724876991772,3.9484,2532.7,2531.5,3.95015]
[1724876991773,3.94743,2533.3,2532.5,3.94862]
[1724876992011,3.94783,2533.1,2532.6,0.55]
[1724876992180,3.9479,2533.0,2532.6,0.55]
[1724876992367,3.0,2532.9,2532.1,2.368]
[1724876992572,3.94861,2532.6,2532.2,0.55]
[1724876993012,3.94897,2532.3,2531.6,2.4021]
[1724876993372,3.0,2532.6,2531.3,3.95052]
[1724876993717,7.89973,2531.8,2531.2,3.9506]
[1724876993920,3.95008,2531.6,2531.0,3.95091]
[1724876994289,3.95031,2531.5,2530.9,3.95115]
[1724876994621,3.0,2531.9,2530.6,2.2583]
[1724876994622,3.95047,2531.4,2530.6,6.43568]
[1724876994914,3.9508,2531.2,2530.6,2.2583]
[1724876995593,3.9508,2531.2,2530.4,3.95182]
[1724876995913,3.0,2531.3,2530.5,0.07902924]
[1724876996223,3.95011,2531.6,2530.8,3.95118]
[1724876996224,3.0,2531.5,2530.8,3.95118]
[1724876996520,3.94993,2531.7,2531.0,7.90189]
[1724876996818,3.0,2531.6,2531.1,0.55]
[1724876997017,6.95008,2531.6,2531.1,0.55]
[1724876997519,6.95011,2531.6,2531.1,0.55]
[1724876997736,3.695011,2531.6,2530.9,0.55]
[1724876998028,3.95061,2531.3,2530.9,0.55]
[1724876998220,3.95052,2531.4,2530.8,4.50131]
[1724876998468,3.95052,2531.4,2530.6,3.9516]
[1724876998595,3.95015,2531.6,2531.0,3.951]
[1724876998800,3.94996,2531.7,2531.0,3.951]
[1724876999105,6.94979,2531.8,2531.2,3.95057]
[1724876999106,3.0,2531.6,2531.2,3.95057]
[1724876999307,0.41066227,2531.9,2531.4,3.95036]
[1724876999511,3.94885,2532.4,2531.5,0.55]
[1724876999731,0.41064846,2532.5,2531.5,0.55]
[1724876999899,3.94954,2532.0,2531.5,0.55]
[1724877000098,0.41064846,2532.5,2531.4,0.55]
[1724877000420,0.41064846,2532.5,2530.9,2.4476]
[1724877000421,3.95037,2531.5,2530.9,2.4476]
[1724877000594,3.94991,2531.7,2531.0,0.55]
[1724877000795,3.9494,2532.1,2530.6,0.07902534]
[1724877000994,3.95016,2531.6,2530.9,3.95104]
[1724877001237,3.94968,2531.9,2531.3,7.90093]
[1724877001441,0.41064846,2532.5,2531.4,0.07899844]
[1724877001728,4.35941846,2532.5,2531.9,3.9495]
[1724877001897,0.41064846,2532.5,2532.1,3.94921]
[1724877002100,3.94784,2533.1,2532.5,3.94857]
[1724877002352,0.41064648,2532.9,2532.6,4.49849]
[1724877002627,3.94765,2533.2,2532.6,0.55]
[1724877002832,3.94765,2533.2,2532.5,0.55]
[1724877003121,1.0813411,2533.5,2532.2,2.4818]
[1724877003122,3.9475,2533.3,2532.3,4.49896]
[1724877003331,3.94759,2533.2,2532.6,3.9484]
[1724877003522,3.94759,2533.2,2532.7,0.55]
[1724877003701,3.94773,2533.1,2532.7,0.55]
[1724877004015,3.9475,2533.3,2532.5,0.55]
[1724877004184,3.94752,2533.3,2532.5,0.55]
[1724877004525,4.35784818,2533.5,2532.8,3.94806]
[1724877004698,3.94727,2533.4,2532.9,0.55]
[1724877004908,4.35784818,2533.5,2532.9,0.55]
[1724877005321,3.94716,2533.5,2532.9,0.55]
[1724877005584,0.41068247,2534.1,2533.0,6.730526]
[1724877005784,3.94693,2533.7,2533.1,0.55]
[1724877006041,3.94659,2533.9,2533.1,1.288077]
[1724877006325,3.94694,2533.7,2533.1,4.4977]
[1724877006538,3.94659,2533.9,2533.1,0.55]
[1724877007022,3.9469,2533.7,2533.1,0.55]
[1724877007450,0.789349,2533.7,2532.5,2.4774]
[1724877007588,3.94801,2533.0,2532.2,3.94901]
[1724877007790,3.94697,2533.6,2532.1,2.4774]
[1724877007791,3.94842,2532.7,2532.1,2.4774]
[1724877007995,3.94842,2532.7,2532.1,6.42665]
[1724877008195,3.0,2533.0,2532.2,0.0789836]
[1724877008419,3.0,2533.0,2532.5,3.94865]
[1724877008845,3.94735,2533.4,2532.5,3.94865]
[1724877008999,3.9469,2533.7,2532.6,0.07896333]
[1724877009197,3.94654,2533.9,2533.2,3.94754]
[1724877009599,4.35691247,2534.1,2533.4,3.94723]
[1724877009600,3.94645,2534.0,2533.4,3.94723]
[1724877009814,0.41068247,2534.1,2533.5,0.55]
[1724877010017,3.94532,2534.7,2533.5,0.55]
[1724877010334,3.94628,2534.1,2533.5,0.55]
[1724877010702,0.41063995,2534.5,2534.0,3.94628]
[1724877010903,0.41063995,2534.5,2534.1,0.55]
[1724877011207,3.94596,2534.3,2533.7,2.291]
[1724877011405,4.35619995,2534.5,2533.8,4.49661]
[1724877011643,4.35619995,2534.5,2533.9,3.94635]
[1724877011814,0.41063995,2534.5,2534.1,3.94612]
[1724877012003,3.9451,2534.8,2534.2,0.55]
[1724877012203,4.35557663,2534.9,2534.2,0.55]
[1724877012441,0.41064663,2534.9,2534.2,0.55]
[1724877012602,0.41064663,2534.9,2534.6,3.9453]
[1724877012803,0.41064663,2534.9,2534.7,0.55]
[1724877013004,3.94443,2535.3,2534.7,0.55]
[1724877013303,3.94443,2535.3,2534.1,3.94607]
[1724877013304,3.94467,2535.1,2534.1,3.94607]
[1724877013503,3.94505,2534.9,2534.3,3.94585]
[1724877013726,3.94467,2535.1,2534.4,0.55]
[1724877013925,3.94479,2535.0,2534.4,0.55]
[1724877014150,3.94541,2534.6,2533.9,2.3295]
[1724877014314,5.0409002,2535.5,2534.1,3.94606]
[1724877014315,3.94518,2534.8,2534.1,3.94606]
[1724877014513,7.8904,2534.8,2534.2,0.55]
[1724877014731,3.94518,2534.8,2534.2,0.55]
[1724877014946,3.0,2534.7,2534.2,0.55]
[1724877015273,3.94649,2533.9,2533.1,3.9477]
[1724877015542,3.694518,2534.7,2532.4,13.63748668]
[1724877015543,3.94605,2534.2,2533.5,3.947]
[1724877015706,3.94577,2534.4,2533.7,3.94678]
[1724877015907,3.94558,2534.5,2533.9,3.94646]
[1724877016247,3.0,2534.4,2533.9,3.94646]
[1724877016637,3.94512,2534.8,2534.1,3.94614]
[1724877016945,3.94467,2535.1,2533.7,2.371]
[1724877017246,3.94467,2535.1,2533.8,0.55]
[1724877017247,3.94598,2534.3,2533.8,0.55]
[1724877017470,3.94598,2534.3,2533.7,0.55]
[1724877017669,3.94618,2534.1,2533.7,0.55]
[1724877017814,3.9461,2534.2,2533.6,4.49685]
[1724877018021,3.94592,2534.3,2533.7,3.94678]
[1724877018217,7.89189,2534.3,2533.6,4.49685]
[1724877018464,3.94592,2534.3,2533.6,8.4437]
[1724877018766,3.94613,2534.2,2533.6,0.55]
[1724877018960,3.94587,2534.3,2533.7,3.94679]
[1724877019125,3.94587,2534.3,2533.8,0.55]
[1724877019321,3.94603,2534.2,2533.8,0.55]
[1724877019524,3.94622,2534.1,2533.7,0.55]
[1724877019844,3.94586,2534.3,2533.6,3.94695]
[1724877020054,3.94586,2534.3,2533.7,0.55]
[1724877020456,3.94735,2533.4,2532.8,6.32073]
[1724877020763,7.89523,2533.2,2532.8,2.3726]
[1724877020969,7.89528,2533.2,2532.8,2.3726]
[1724877021137,3.94757,2533.2,2532.8,2.3726]
[1724877021341,3.94733,2533.4,2532.8,2.3726]
[1724877021667,3.0,2533.8,2532.8,2.3726]
[1724877021819,3.94689,2533.7,2532.8,2.3726]
[1724877022027,3.94712,2533.5,2533.0,3.94774]
[1724877022247,3.0,2533.6,2533.1,0.55]
[1724877022458,3.94773,2533.2,2532.9,0.55]
[1724877022661,3.94806,2532.9,2532.4,2.2889]
[1724877022867,3.94883,2532.4,2532.0,2.2889]
[1724877023465,3.9477,2533.2,2532.0,2.2889]
[1724877023466,3.94913,2532.2,2532.0,2.2889]
[1724877023625,3.94913,2532.2,2531.6,3.94996]
[1724877023824,3.94837,2532.7,2531.6,4.588216]
[1724877024052,3.94919,2532.2,2531.7,3.94988]
[1724877024258,3.94897,2532.4,2531.8,3.94967]
[1724877024571,6.94861,2532.6,2532.0,3.94935]
[1724877024772,3.0,2532.6,2531.8,0.8537886]
[1724877024922,3.0,2532.7,2532.0,3.94941]
[1724877025123,3.0,2532.7,2532.1,0.55]
[1724877025323,3.94798,2533.0,2532.3,2.4326]
[1724877025576,3.94798,2533.0,2532.4,0.55]
[1724877025867,0.3,2533.6,2532.7,3.94826]
[1724877025868,3.9475,2533.3,2532.7,3.94826]
[1724877026076,3.9475,2533.3,2532.8,0.55]
[1724877026274,3.94734,2533.4,2532.8,0.55]
[1724877026577,3.94759,2533.2,2532.8,0.449836]
[1724877026865,3.94759,2533.2,2532.9,0.55]
[1724877027080,3.94759,2533.2,2532.7,0.55]
[1724877027671,3.94745,2533.3,2532.7,4.4982]
[1724877027972,3.947,2533.6,2532.7,0.55]
[1724877028170,3.94783,2533.1,2532.6,0.55]
[1724877028334,3.94749,2533.3,2532.7,3.94834]
[1724877028715,3.94771,2533.2,2532.8,0.55]
[1724877028878,3.0,2533.5,2532.7,0.55]
[1724877029023,3.0,2533.5,2532.6,0.55]
[1724877029024,3.94779,2533.1,2532.6,0.55]
[1724877029227,3.94798,2533.0,2532.6,0.55]
[1724877029733,3.94779,2533.1,2532.6,0.55]
[1724877029925,3.94791,2533.0,2532.6,0.55]
[1724877030231,3.94779,2533.1,2532.6,0.55]
[1724877030430,0.694779,2533.1,2531.8,7.40854648]
[1724877030731,3.94929,2532.2,2531.9,2.411]
[1724877030961,3.94855,2532.6,2531.5,2.4644]
[1724877031184,3.94959,2532.0,2531.5,2.4644]
[1724877031342,6.90122301,2532.6,2531.1,2.358]
[1724877031531,3.95023,2531.5,2531.1,2.358]
[1724877032471,7.90056,2531.5,2531.1,2.358]
[1724877032659,3.95113,2531.0,2530.7,2.3668]
[1724877032849,3.0,2531.8,2530.7,2.3668]
[1724877032850,3.95076,2531.2,2530.7,2.3668]
[1724877033183,3.95126,2530.9,2530.3,6.40787]
[1724877033492,7.90223,2531.0,2530.3,6.40787]
[1724877033771,3.9511,2531.0,2530.3,6.40787]
[1724877033978,6.95041,2531.4,2530.6,3.95162]
[1724877034271,3.95094,2531.1,2530.4,3.95187]
[1724877034478,3.9508,2531.2,2530.5,5.0912522]
[1724877034839,3.9508,2531.2,2530.6,3.95152]
[1724877035128,3.95008,2531.6,2530.7,0.07902828]
[1724877035329,3.95008,2531.6,2530.5,1.1395822]
[1724877035330,3.95074,2531.2,2530.5,2.3071]
[1724877035558,3.95112,2531.0,2530.6,0.55]
[1724877035933,3.95074,2531.2,2530.6,0.55]
[1724877036130,3.95117,2530.9,2530.6,0.55]
[1724877036358,7.90129,2531.3,2530.6,0.55]
[1724877036653,3.0,2531.2,2530.6,0.55]
[1724877036876,3.95094,2531.1,2530.6,4.50161]
[1724877037076,3.9511,2531.0,2530.6,0.55]
[1724877037296,3.95129,2530.9,2530.6,0.55]
[1724877037498,7.90259,2530.9,2530.4,0.55]
[1724877037682,3.95129,2530.9,2530.4,0.55]
[1724877037894,3.95145,2530.8,2530.4,0.55]
[1724877038052,3.95129,2530.9,2530.2,0.55]
[1724877038257,3.95148,2530.7,2530.2,0.55]
[1724877038669,3.95126,2530.9,2530.2,4.50216]
[1724877038881,3.95132,2530.8,2530.2,4.50216]
[1724877039389,3.95126,2530.9,2530.2,4.50216]
[1724877039390,3.95126,2530.9,2530.3,4.797516]
[1724877039602,6.95026,2531.5,2530.6,6.22962]
[1724877039603,3.95072,2531.2,2530.6,6.22962]
[1724877039971,3.95063,2531.3,2530.7,4.50144]
[1724877040383,3.95063,2531.3,2530.8,3.9513]
[1724877040673,3.95096,2531.1,2530.9,0.55]
[1724877040872,3.95096,2531.1,2530.4,7.40854648]
[1724877041068,3.95061,2531.3,2530.7,3.95144]
[1724877041277,3.95061,2531.3,2530.5,4.50169]
[1724877041278,3.95001,2531.7,2530.8,0.55]
[1724877041476,7.45,2531.8,2530.7,4.50138]
[1724877041477,3.95033,2531.5,2530.7,4.50138]
[1724877041922,3.95065,2531.3,2530.7,8.45275]
[1724877042082,3.94966,2531.9,2530.7,8.45275]
[1724877042083,0.4831702,2532.0,2531.9,3.9496]
[1724877042289,2.4017,2533.5,2532.0,0.55]
[1724877042492,2.4017,2533.5,2532.1,3.94928]
[1724877042792,3.94776,2533.1,2532.4,3.94872]
[1724877043006,3.94775,2533.1,2532.5,0.55]
[1724877043206,3.94861,2532.6,2531.9,2.2781]
[1724877043405,3.94865,2532.6,2532.0,0.55]
[1724877043832,3.94826,2532.8,2532.1,3.94917]
[1724877044031,7.89656,2532.8,2532.2,0.55]
[1724877044240,3.94826,2532.8,2532.2,0.55]
[1724877044443,3.94852,2532.6,2532.1,0.55]
[1724877044597,8.3308735,2532.8,2532.1,4.49917]
[1724877044799,8.3308735,2532.8,2532.2,3.94904]
[1724877044800,3.94826,2532.8,2532.2,3.94904]
[1724877045048,3.94826,2532.8,2532.3,0.55]
[1724877045844,7.89659,2532.8,2532.3,0.55]
[1724877046334,3.94826,2532.8,2532.3,0.55]
[1724877046901,4.342735,2533.0,2532.3,4.49888]
[1724877047152,3.77535003,2532.9,2532.3,0.55]
[1724877047302,3.94862,2532.6,2532.0,3.94935]
[1724877047505,3.0,2532.9,2531.9,2.2781]
[1724877047727,3.94923,2532.2,2531.7,7.40854648]
[1724877047969,3.94859,2532.6,2532.1,3.94929]
[1724877048178,3.0,2532.5,2531.8,3.94968]
[1724877048385,3.94859,2532.6,2532.0,3.94932]
[1724877048587,3.94883,2532.4,2531.8,3.94967]
[1724877048894,7.89776,2532.4,2531.8,3.94967]
[1724877049169,7.89774,2532.4,2531.9,0.55]
[1724877049379,3.94971,2531.9,2531.2,3.95055]
[1724877049592,3.94974,2531.9,2531.2,3.95055]
[1724877049779,3.94945,2532.0,2531.3,3.95053]
[1724877050384,3.0,2532.2,2531.1,6.28595]
[1724877050675,4.343579,2532.5,2531.1,6.28595]
[1724877050676,3.95003,2531.7,2531.1,6.28595]
[1724877050884,7.90004,2531.7,2531.1,6.28595]
[1724877051095,3.95007,2531.6,2531.1,6.28595]
[1724877051373,3.0,2531.9,2531.1,2.3352]
[1724877051581,3.94991,2531.7,2531.1,6.28593]
[1724877051939,3.95008,2531.6,2531.1,6.28593]
[1724877052370,3.0,2531.8,2531.4,3.95026]
[1724877052538,3.95022,2531.5,2530.8,3.95123]
[1724877053366,3.95038,2531.4,2530.8,3.95123]
[1724877053571,3.95011,2531.6,2530.7,2.3352]
[1724877053775,3.0,2531.5,2530.3,2.3352]
[1724877054002,2.6873,2531.8,2529.4,6.30302]
[1724877054003,3.95255,2530.1,2529.4,6.30302]
[1724877054173,3.95118,2530.9,2529.4,2.3496]
[1724877054174,3.95274,2529.9,2529.4,2.3496]
[1724877054572,3.95274,2529.9,2529.4,6.30308]
[1724877054772,7.90502,2530.1,2529.4,6.30308]
[1724877054968,6.95259,2530.0,2529.4,6.30308]
[1724877055255,3.0,2530.0,2529.4,10.25649]
[1724877055522,3.95049,2531.4,2529.5,0.07906812]
[1724877055736,3.95197,2530.4,2529.6,3.95309]
[1724877056014,7.90406,2530.4,2529.7,3.95292]
[1724877056318,7.90406,2530.4,2529.6,3.95316]
[1724877056319,3.95232,2530.2,2529.6,3.95316]
[1724877056485,3.0,2530.6,2529.4,2.3496]
[1724877056691,3.95137,2530.8,2529.4,6.30301]
[1724877056692,3.9525,2530.1,2529.4,6.30301]
[1724877056887,3.95268,2530.0,2529.4,6.30301]
[1724877057086,3.95268,2530.0,2529.4,6.303]
[1724877057305,3.9523,2530.2,2529.4,6.303]
[1724877057306,7.90468,2530.2,2529.4,6.303]
[1724877057517,3.95201,2530.4,2529.4,7.3963423]
[1724877057772,3.9522,2530.3,2529.6,3.9531]
[1724877057972,3.9525,2530.1,2529.4,3.4429223]
[1724877058187,3.9525,2530.1,2529.4,6.30297]
[1724877058413,3.9526,2530.0,2529.4,6.30297]
[1724877058595,3.9526,2530.0,2529.5,0.55]
[1724877059420,3.95232,2530.2,2529.5,4.50331]
[1724877059577,3.95202,2530.4,2529.7,3.95303]
[1724877059777,6.95224,2530.3,2529.8,0.55]
[1724877060003,3.0,2530.3,2529.8,4.50288]
[1724877060212,0.71816,2530.7,2529.8,4.50288]
[1724877060213,3.95108,2531.0,2530.2,6.24406]
[1724877060471,0.4108364,2530.9,2530.4,3.9518]
[1724877060701,0.4108364,2530.9,2530.5,0.55]
[1724877060876,3.95089,2531.1,2530.5,3.95167]
[1724877061213,0.41079642,2531.2,2530.3,0.55]
[1724877061411,3.95152,2530.7,2530.2,2.2919]
[1724877061611,3.95145,2530.8,2530.2,6.24404]
[1724877061789,3.95179,2530.5,2529.8,6.2605]
[1724877062121,3.95155,2530.7,2530.0,3.95255]
[1724877062296,3.95155,2530.7,2530.1,0.55]
[1724877062483,3.95156,2530.7,2530.1,0.55]
[1724877062691,3.0,2530.9,2530.1,0.55]
[1724877062879,3.95191,2530.5,2529.9,0.55]
[1724877063213,3.95176,2530.6,2529.9,0.55]
[1724877063418,3.0,2530.9,2530.0,4.63022301]
[1724877063609,3.0,2531.1,2530.5,3.95168]
[1724877063819,0.41079642,2531.2,2530.6,2.2918]
[1724877064012,0.41079642,2531.2,2530.9,3.95105]
[1724877064313,0.41079642,2531.2,2531.0,0.55]
[1724877064483,3.95015,2531.6,2531.0,4.50099]
[1724877064705,3.95015,2531.6,2531.1,3.95084]
[1724877065077,3.95039,2531.4,2531.2,0.55]
[1724877065281,3.95039,2531.4,2530.9,3.95113]
[1724877065502,3.95019,2531.6,2531.0,4.50091]
[1724877065995,4.36054762,2531.8,2531.4,3.95023]
[1724877065996,0.41069762,2531.8,2531.4,3.95023]
[1724877066197,0.41069762,2531.8,2531.5,0.55]
[1724877066580,3.94969,2531.9,2531.5,0.55]
[1724877066744,3.94969,2531.9,2531.1,2.3791]
[1724877066745,3.95032,2531.5,2531.1,2.3791]
[1724877066892,3.95004,2531.7,2531.2,0.55]
[1724877067089,3.95015,2531.6,2530.7,2.4081]
[1724877067307,0.394953,2531.9,2530.7,2.4081]
[1724877067308,3.94995,2531.7,2531.0,3.95099]
[1724877067606,0.41066221,2532.1,2531.1,0.62901787]
[1724877067915,4.36005221,2532.1,2531.4,3.95029]
[1724877068126,0.41066221,2532.1,2531.5,0.55]
[1724877068336,3.95002,2531.7,2531.2,2.4081]
[1724877068515,0.41066221,2532.1,2531.3,0.55]
[1724877068516,3.95034,2531.5,2531.3,0.55]
[1724877068830,3.94947,2532.0,2531.3,0.55]
[1724877069042,3.94947,2532.0,2530.7,2.4887]
[1724877069043,3.95052,2531.4,2530.7,2.4887]
[1724877069201,3.94977,2531.8,2530.7,2.4887]
[1724877069410,3.0,2531.7,2530.8,4.223008]
[1724877069614,3.95031,2531.5,2530.9,3.95116]
[1724877069793,3.95044,2531.4,2530.8,4.223008]
[1724877069992,3.95044,2531.4,2530.7,2.4887]
[1724877070194,3.95044,2531.4,2530.8,3.95131]
[1724877070412,3.0,2531.7,2530.7,2.4887]
[1724877070413,3.95023,2531.5,2530.9,3.95107]
[1724877070611,3.0,2531.7,2530.9,4.595047]
[1724877070855,3.95021,2531.6,2530.9,8.546117]
[1724877071039,3.95023,2531.5,2530.9,3.95107]
[1724877071238,3.95064,2531.3,2530.7,6.44007]
[1724877071455,3.95035,2531.5,2530.9,3.95107]
[1724877071617,3.95032,2531.5,2531.0,0.55]
[1724877071814,3.9502,2531.6,2531.0,4.50099]
[1724877072028,3.95027,2531.5,2531.0,0.55]
[1724877072320,3.95,2531.7,2531.0,0.55]
[1724877072321,3.95,2531.7,2531.1,3.95073]
[1724877072517,3.95025,2531.5,2531.2,0.55]
[1724877072849,3.95081,2531.2,2530.7,2.4887]
[1724877073024,3.95016,2531.6,2530.9,3.95101]
[1724877073360,3.0,2531.5,2531.1,3.95084]
[1724877073662,6.95023,2531.5,2530.9,3.95107]
[1724877074158,6.95023,2531.5,2530.9,7.90215]
[1724877074453,6.95023,2531.5,2531.0,0.55]
[1724877075049,3.95055,2531.3,2531.0,0.55]
[1724877075351,3.95055,2531.3,2530.7,6.44007]
[1724877075352,3.95078,2531.2,2530.7,6.44007]
[1724877075669,3.95133,2530.8,2530.3,6.22711]
[1724877075951,7.90279,2530.8,2530.3,2.2751]
[1724877076124,3.95133,2530.8,2530.3,2.2751]
[1724877076953,3.95109,2531.0,2530.4,0.55]
[1724877077125,3.0,2531.2,2530.7,3.95137]
[1724877077330,6.95072,2531.2,2530.8,0.55]
[1724877077534,3.95098,2531.1,2530.8,0.55]
[1724877077720,3.0,2531.2,2530.6,0.55]
[1724877077917,3.0,2531.2,2530.7,3.95133]
[1724877078254,7.45,2531.5,2530.9,3.95102]
[1724877078255,11.40033,2531.5,2530.9,3.95102]
[1724877078457,3.95015,2531.6,2530.9,3.95102]
[1724877078665,3.95015,2531.6,2531.0,0.55]
[1724877079019,3.95042,2531.4,2531.0,0.55]
[1724877079415,7.90032,2531.6,2531.0,0.55]
[1724877079717,3.95011,2531.6,2531.0,4.50098]
[1724877079945,0.41066221,2532.1,2531.3,3.95043]
[1724877080177,14.6837,2532.4,2531.7,3.94981]
[1724877080178,3.94889,2532.4,2531.7,3.94981]
[1724877080459,0.41060544,2532.5,2531.9,3.94944]
[1724877080615,3.94899,2532.3,2531.8,2.4611]
[1724877080816,3.94899,2532.3,2531.7,3.94977]
[1724877080817,4.35932544,2532.5,2531.6,7.40854648]
[1724877081061,3.94984,2531.8,2531.6,7.40854648]
[1724877081257,3.94984,2531.8,2531.0,4.50098]
[1724877081258,0.394984,2531.8,2531.0,7.40854648]
[1724877081466,3.95018,2531.6,2531.1,3.95084]
[1724877081756,3.95018,2531.6,2530.8,6.41227]
[1724877081757,3.95041,2531.4,2530.8,6.41227]
[1724877081963,7.90089,2531.4,2530.8,6.41227]
[1724877082272,7.90093,2531.4,2530.8,6.41227]
[1724877082561,3.95017,2531.6,2531.0,3.95099]
[1724877082745,3.9498,2531.8,2531.1,4.5008]
[1724877082944,3.0,2531.7,2531.1,3.9508]
[1724877083153,3.95034,2531.5,2531.2,0.55]
[1724877083352,6.95006,2531.7,2531.2,0.55]
[1724877083550,6.95006,2531.7,2531.2,4.5006]
[1724877083924,10.90009,2531.7,2531.2,0.55]
[1724877084162,6.95003,2531.7,2531.2,0.55]
[1724877084365,7.45,2532.1,2531.6,2.4526]
[1724877084591,4.35931544,2532.5,2531.7,0.55]
[1724877084862,0.41060544,2532.5,2532.0,7.89879]
[1724877085168,3.94829,2532.8,2532.0,7.89879]
[1724877085169,3.94828,2532.8,2532.3,3.94896]
[1724877085366,3.94819,2532.8,2532.1,0.55]
[1724877085572,3.94897,2532.3,2531.6,2.4526]
[1724877085724,7.89804,2532.3,2531.7,0.55]
[1724877086037,3.94923,2532.2,2531.7,4.49983]
[1724877086540,3.94897,2532.3,2531.7,8.44964]
[1724877086939,3.94897,2532.3,2531.8,3.94974]
[1724877087148,3.94897,2532.3,2531.9,0.55]
[1724877087348,7.89755,2532.5,2531.9,4.49958]
[1724877087541,3.0,2532.6,2532.1,3.94918]
[1724877087864,3.94807,2532.9,2532.2,0.62898286]
[1724877088065,3.94807,2532.9,2532.3,3.0248]
[1724877088276,3.94807,2532.9,2532.4,3.94878]
[1724877088430,0.41052985,2533.0,2532.5,0.55]
[1724877088631,0.41052985,2533.0,2532.7,3.94825]
[1724877088867,3.94699,2533.6,2532.8,0.55]
[1724877089117,3.94792,2533.0,2532.5,4.49858]
[1724877089376,3.9475,2533.3,2532.6,3.9485]
[1724877089530,3.9472,2533.5,2532.7,4.49825]
[1724877089736,0.41047455,2533.6,2532.7,1.0089037]
[1724877090098,0.41047455,2533.6,2533.1,2.4748]
[1724877090366,3.94682,2533.7,2533.2,0.55]
[1724877090567,3.94636,2534.0,2533.2,0.55]
[1724877090776,3.94688,2533.7,2533.2,0.55]
[1724877091086,3.94688,2533.7,2533.2,4.49754]
[1724877091433,4.35671606,2534.1,2533.2,8.44494]
[1724877091663,3.94661,2533.9,2533.3,1.54959419]
[1724877091868,4.35672606,2534.1,2533.4,4.4972]
[1724877092172,3.94619,2534.1,2533.6,3.94694]
[1724877092469,4.35647212,2534.3,2533.7,0.55]
[1724877092772,3.94626,2534.1,2533.7,0.55]
[1724877092993,4.35645212,2534.3,2533.1,2.4748]
[1724877092994,4.35643212,2534.3,2533.1,2.4748]
[1724877093149,3.04380447,2534.2,2532.7,2.4913]
[1724877093346,3.9473,2533.4,2532.7,2.4913]
[1724877093553,3.94758,2533.2,2532.7,6.43955]
[1724877093863,3.9473,2533.4,2532.7,6.43955]
[1724877093864,3.9473,2533.4,2532.8,3.94808]
[1724877094059,3.9473,2533.4,2532.7,4.08906074]
[1724877094293,3.0,2533.6,2532.3,6.22047]
[1724877094294,3.94719,2533.5,2532.3,6.22047]
[1724877094452,3.94793,2533.0,2532.3,2.2716]
[1724877094651,3.94815,2532.9,2532.3,6.842542]